bitfinex/quotes_BTCUSD_20220115
["timestamp","ask_amount","ask_price","bid_price","bid_amount"]
[1642256358554,3.01346681,42831.0,42829.0,0.29867793]
[1642256358754,0.375147,42830.0,42829.0,0.29867793]
[1642256359292,0.365147,42830.0,42829.0,0.29367793]
[1642256359894,0.365147,42830.0,42829.0,0.24897793]
[1642256360292,0.365147,42830.0,42823.0,0.116748]
[1642256360492,0.57958848,42832.0,42823.0,0.39642916]
[1642256360693,0.75287026,42832.0,42823.0,0.116748]
[1642256360896,0.85287026,42832.0,42821.0,0.59922824]
[1642256361094,0.375127,42831.0,42821.0,0.59922824]
[1642256361494,0.475127,42831.0,42821.0,0.59922824]
[1642256361696,0.27189547,42825.0,42820.0,0.91723359]
[1642256361898,0.57958848,42831.0,42821.0,0.05838182]
[1642256362099,0.57958848,42831.0,42820.0,0.91723359]
[1642256362597,0.57958848,42829.0,42820.0,0.31800535]
[1642256362796,0.25067516,42828.0,42820.0,0.37638435]
[1642256363048,0.25067516,42828.0,42820.0,0.31800535]
[1642256363947,0.57958848,42830.0,42823.0,0.24388531]
[1642256364147,0.57958848,42830.0,42823.0,0.30226431]
[1642256364347,0.57958848,42830.0,42828.0,0.24317264]
[1642256364547,0.375127,42829.0,42828.0,0.22817264]
[1642256364946,0.375127,42829.0,42828.0,0.18327264]
[1642256365845,0.57958848,42831.0,42828.0,0.18327264]
[1642256366047,0.67747401,42833.0,42828.0,0.18327264]
[1642256366048,0.375127,42830.0,42828.0,0.18327264]
[1642256369001,0.57958848,42833.0,42828.0,0.18327264]
[1642256369299,0.375127,42832.0,42829.0,0.0583712]
[1642256370004,0.375127,42832.0,42829.0,0.0134712]
[1642256370652,0.375127,42832.0,42830.0,0.058371]
[1642256371755,0.57958848,42834.0,42831.0,0.1746342]
[1642256371953,0.57958848,42834.0,42831.0,0.51591768]
[1642256372351,0.57958848,42834.0,42832.0,0.37202609]
[1642256372555,0.57958848,42834.0,42833.0,0.1758057]
[1642256372952,0.57958848,42839.0,42833.0,0.1758057]
[1642256373153,0.57958848,42839.0,42834.0,0.058361]
[1642256373154,0.375127,42838.0,42834.0,0.058361]
[1642256373353,0.375127,42838.0,42835.0,0.25412104]
[1642256374398,0.375127,42838.0,42836.0,0.17233151]
[1642256374600,0.57958848,42840.0,42837.0,0.058355]
[1642256374999,0.57958848,42841.0,42839.0,0.20819101]
[1642256375402,0.57958848,42841.0,42840.0,1.70127919]
[1642256375701,0.57958848,42841.0,42840.0,0.58664192]
[1642256376104,0.5854,42852.0,42840.0,0.36681292]
[1642256376105,0.57958848,42844.0,42840.0,0.36681292]
[1642256376302,0.57958848,42844.0,42843.0,0.28960274]
[1642256376502,0.57958848,42844.0,42843.0,0.29081947]
[1642256377102,0.57958848,42846.0,42843.0,0.29081947]
[1642256377501,0.57958848,42846.0,42844.0,0.058347]
[1642256377704,0.57958848,42846.0,42843.0,0.46366002]
[1642256377901,0.57958848,42846.0,42843.0,0.29081947]
[1642256378142,0.57958848,42846.0,42838.0,0.18229149]
[1642256378345,0.57958848,42846.0,42837.0,0.11670512]
[1642256378541,0.57958848,42846.0,42835.0,0.94249171]
[1642256378742,0.57958848,42846.0,42838.0,0.116706]
[1642256379142,0.83134183,42845.0,42840.0,0.28638928]
[1642256380246,0.83134183,42845.0,42840.0,0.24158928]
[1642256380847,0.57958848,42844.0,42840.0,0.24158928]
[1642256382599,0.57958848,42844.0,42837.0,0.17506487]
[1642256382600,0.57958848,42844.0,42837.0,0.116706]
[1642256382805,0.57958848,42844.0,42833.0,0.83266614]
[1642256382806,0.375127,42843.0,42833.0,0.83266614]
[1642256383000,0.57958848,42844.0,42834.0,0.058364]
[1642256383200,0.375127,42843.0,42834.0,0.058364]
[1642256383699,0.375127,42843.0,42832.0,0.59922824]
[1642256383901,0.57958848,42840.0,42830.0,0.116728]
[1642256384098,0.57958848,42840.0,42831.0,0.758727]
[1642256384299,0.57958848,42840.0,42832.0,0.23]
[1642256384901,0.30660338,42837.0,42833.0,0.27032738]
[1642256385103,0.30660338,42837.0,42834.0,0.70038]
[1642256386155,0.57958848,42839.0,42834.0,0.70038]
[1642256386555,0.0595709,42845.0,42834.0,0.70038]
[1642256386556,0.57958848,42838.0,42834.0,0.70038]
[1642256387255,0.25967348,42837.0,42834.0,0.70038]
[1642256387555,0.57958848,42838.0,42834.0,0.70038]
[1642256388955,0.57958848,42840.0,42834.0,0.70038]
[1642256389155,0.57958848,42840.0,42834.0,0.75874176]
[1642256389400,0.57958848,42840.0,42834.0,0.81710376]
[1642256389998,0.57958848,42840.0,42834.0,0.77250376]
[1642256391100,0.57958848,42840.0,42837.0,0.058361]
[1642256392200,0.57958848,42840.0,42837.0,0.11671886]
[1642256394048,0.57958848,42840.0,42838.0,0.42605726]
[1642256394250,0.57958848,42840.0,42839.0,0.18029506]
[1642256395048,0.57958848,42843.0,42839.0,0.19384326]
[1642256395248,0.57958848,42843.0,42842.0,0.25878232]
[1642256396349,0.57958848,42845.0,42843.0,0.11668522]
[1642256396993,0.57958848,42845.0,42843.0,0.45612656]
[1642256397193,0.67618656,42847.0,42844.0,0.00129334]
[1642256397393,0.67618656,42849.0,42844.0,0.18872813]
[1642256397592,0.67618656,42849.0,42844.0,0.00129334]
[1642256397994,0.67618656,42849.0,42845.0,0.32164555]
[1642256398395,0.92696719,42851.0,42845.0,0.32164555]
[1642256398599,0.67618656,42851.0,42845.0,0.37999355]
[1642256398997,0.67486052,42851.0,42849.0,0.33065645]
[1642256399395,0.2965,42856.0,42849.0,0.33065645]
[1642256399396,0.67486052,42850.0,42849.0,0.33065645]
[1642256400197,1.31895134,42856.0,42849.0,0.28585645]
[1642256400398,0.375127,42852.0,42849.0,0.28585645]
[1642256402243,0.25341216,42856.0,42849.0,0.34419745]
[1642256402444,0.76903918,42858.0,42849.0,0.34419745]
[1642256402643,0.977,42861.0,42849.0,0.34419745]
[1642256402644,1.59983918,42859.0,42849.0,0.34419745]
[1642256403246,0.8308,42859.0,42850.0,0.05833969]
[1642256403443,0.34113917,42856.0,42850.0,0.05833969]
[1642256403645,0.33667277,42856.0,42849.0,0.34419745]
[1642256403847,0.375127,42855.0,42850.0,0.44177851]
[1642256404043,0.375127,42855.0,42850.0,0.50011851]
[1642256404701,0.375127,42855.0,42851.0,0.05833863]
[1642256404901,0.375127,42855.0,42850.0,0.50011851]
[1642256405102,0.375127,42855.0,42850.0,0.45521851]
[1642256405300,0.375127,42855.0,42850.0,0.68521851]
[1642256406303,0.8308,42859.0,42850.0,0.68521851]
[1642256406705,0.58587366,42852.0,42850.0,0.85721653]
[1642256406906,0.58587366,42852.0,42851.0,1.87490572]
[1642256407103,0.58587366,42852.0,42851.0,2.25297772]
[1642256407305,0.25252394,42852.0,42851.0,2.25297772]
[1642256407506,0.25252394,42853.0,42851.0,2.25297772]
[1642256407704,0.25252394,42853.0,42852.0,0.66669503]
[1642256407904,0.25252394,42853.0,42852.0,1.36677503]
[1642256408160,0.25252394,42853.0,42852.0,1.46677503]
[1642256408360,0.68351927,42855.0,42852.0,1.46799166]
[1642256408560,0.76903918,42861.0,42857.0,0.0012938]
[1642256408762,0.76903918,42869.0,42858.0,0.68945551]
[1642256409067,0.76903918,42869.0,42858.0,0.27677018]
[1642256409262,0.30750401,42863.0,42858.0,0.27677018]
[1642256410061,1.98027583,42869.0,42858.0,0.66651938]
[1642256410260,0.375127,42868.0,42858.0,0.68014838]
[1642256410462,0.375127,42867.0,42859.0,0.05832834]
[1642256410860,2.74931501,42869.0,42859.0,0.05832834]
[1642256411064,0.28816813,42867.0,42865.0,0.28726064]
[1642256411266,2.74803035,42869.0,42861.0,0.116639]
[1642256411267,0.68446912,42863.0,42861.0,0.116639]
[1642256411667,0.68446912,42863.0,42858.0,0.44930371]
[1642256412302,0.68446912,42863.0,42861.0,0.25388845]
[1642256412504,0.98860507,42865.0,42861.0,0.25388845]
[1642256412901,0.98860507,42865.0,42861.0,0.31221345]
[1642256413103,0.68446912,42864.0,42861.0,0.31221345]
[1642256414101,0.68446912,42864.0,42862.0,0.05832277]
[1642256414504,0.06239145,42864.0,42863.0,0.17123993]
[1642256414703,0.06239145,42864.0,42863.0,0.39091093]
[1642256415103,0.06239145,42864.0,42863.0,0.275071]
[1642256415303,0.31135663,42868.0,42863.0,0.275071]
[1642256415551,1.88657837,42872.0,42865.0,0.05831888]
[1642256415751,1.50413918,42875.0,42868.0,0.30502721]
[1642256415954,0.76903918,42873.0,42868.0,0.30502721]
[1642256416152,0.375076,42872.0,42868.0,0.30502721]
[1642256416554,0.76903918,42873.0,42872.0,0.00124025]
[1642256416753,0.76903918,42873.0,42872.0,0.09367025]
[1642256417152,1.21003918,42875.0,42872.0,0.09367025]
[1642256417953,0.441,42875.0,42872.0,0.15198125]
[1642256418452,0.00085039,42873.0,42872.0,0.15198125]
[1642256418853,0.00085039,42873.0,42872.0,0.32184602]
[1642256420300,0.00085039,42873.0,42872.0,0.27724602]
[1642256421600,0.00085039,42873.0,42872.0,0.45227502]
[1642256422801,0.00085039,42873.0,42872.0,0.43732377]
[1642256423044,0.00085039,42873.0,42872.0,0.26229477]
[1642256423545,1.6943023,42879.0,42872.0,0.26229477]
[1642256423745,0.00085039,42879.0,42873.0,0.0583072]
[1642256424652,0.00085039,42879.0,42869.0,0.35483512]
[1642256425246,0.00085039,42879.0,42871.0,0.01361141]
[1642256425446,0.00085039,42879.0,42874.0,0.058305]
[1642256426247,0.00085039,42879.0,42876.0,0.05830345]
[1642256426446,0.00085039,42879.0,42872.0,0.45588741]
[1642256426649,0.00085039,42879.0,42872.0,0.1166069]
[1642256427700,0.29410678,42876.0,42872.0,0.2332179]
[1642256428297,0.00085039,42879.0,42872.0,0.2332179]
[1642256428500,0.00085356,42878.0,42872.0,0.058311]
[1642256428701,0.00085356,42878.0,42870.0,0.1]
[1642256429099,0.00085356,42878.0,42869.0,0.346616]
[1642256429298,0.00085356,42878.0,42869.0,0.66423948]
[1642256429501,0.00085356,42878.0,42870.0,0.05831177]
[1642256430100,0.00085356,42878.0,42869.0,1.07141618]
[1642256430300,0.00085356,42878.0,42872.0,0.05831]
[1642256430547,0.2507849,42876.0,42872.0,0.05831]
[1642256430747,0.00085356,42878.0,42873.0,0.05830835]
[1642256430963,0.00085356,42878.0,42869.0,0.96850618]
[1642256431146,0.00085356,42878.0,42869.0,0.89649018]
[1642256431549,0.00085356,42878.0,42869.0,0.64762348]
[1642256431946,0.28342048,42876.0,42869.0,0.64762348]
[1642256432145,0.28342048,42876.0,42869.0,0.33]
[1642256432348,0.28342048,42876.0,42869.0,0.23]
[1642256432555,0.17300489,42875.0,42869.0,0.23]
[1642256432947,0.17438407,42875.0,42869.0,0.23]
[1642256433248,0.28342048,42876.0,42869.0,0.23]
[1642256433646,0.00085166,42875.0,42869.0,0.23]
[1642256435008,0.00085166,42875.0,42869.0,0.49152603]
[1642256435207,0.00085166,42875.0,42869.0,0.44672603]
[1642256435606,0.00085166,42875.0,42869.0,0.56335198]
[1642256435803,0.00085166,42875.0,42869.0,0.50503903]
[1642256436804,0.00085166,42875.0,42872.0,0.058307]
[1642256437002,0.00085166,42875.0,42872.0,0.37265972]
[1642256437604,0.00085166,42875.0,42872.0,0.11661325]
[1642256438650,0.00085103,42877.0,42872.0,0.11661325]
[1642256438850,0.30566781,42876.0,42871.0,0.116613]
[1642256439056,0.00085103,42877.0,42871.0,0.116613]
[1642256439250,0.00085103,42877.0,42869.0,0.84805239]
[1642256439451,0.00085103,42877.0,42869.0,0.60504003]
[1642256439953,0.00085103,42877.0,42872.0,0.05830939]
[1642256440355,0.00085103,42877.0,42872.0,0.01350939]
[1642256440553,0.29333087,42876.0,42874.0,0.058309]
[1642256440852,0.29333087,42876.0,42871.0,0.17492259]
[1642256441458,0.29333087,42876.0,42871.0,0.116613]
[1642256442302,0.00085103,42877.0,42871.0,0.116613]
[1642256443507,2.05422152,42880.0,42871.0,0.116613]
[1642256444204,2.05422152,42880.0,42869.0,0.88599551]
[1642256444604,0.25251966,42874.0,42869.0,0.54672603]
[1642256444805,2.05422152,42880.0,42869.0,0.60504103]
[1642256445205,2.05422152,42880.0,42869.0,0.56044103]
[1642256445206,0.182324,42879.0,42869.0,0.56044103]
[1642256445649,2.05422152,42880.0,42869.0,0.56044103]
[1642256446051,0.24290568,42876.0,42869.0,0.86752206]
[1642256446251,0.24290568,42876.0,42869.0,0.92583506]
[1642256446650,2.05422152,42880.0,42869.0,0.92583506]
[1642256446851,2.05422152,42880.0,42870.0,0.05831076]
[1642256447250,0.375076,42879.0,42870.0,0.05831076]
[1642256447451,2.05422152,42880.0,42871.0,0.058311]
[1642256447650,0.25398554,42876.0,42871.0,0.058311]
[1642256450299,0.25398554,42876.0,42871.0,0.013411]
[1642256450900,0.25398554,42876.0,42873.0,0.05830776]
[1642256451099,0.25398554,42876.0,42874.0,0.058309]
[1642256452400,0.00085419,42879.0,42874.0,0.058309]
[1642256452600,0.00085419,42879.0,42871.0,0.058312]
[1642256452601,0.375076,42878.0,42871.0,0.058312]
[1642256452802,0.00085419,42879.0,42871.0,0.058312]
[1642256453450,0.00085166,42875.0,42871.0,0.058312]
[1642256455447,0.00085166,42875.0,42872.0,0.175023]
[1642256455850,0.00085166,42875.0,42873.0,0.058306]
[1642256456148,0.00085166,42875.0,42874.0,0.175015]
[1642256457005,0.00085166,42875.0,42873.0,0.05830778]
[1642256458707,0.3452206,42879.0,42871.0,0.013512]
[1642256460109,0.3452206,42879.0,42876.0,0.25407768]
[1642256460311,0.375076,42878.0,42876.0,0.20927768]
[1642256460950,0.375076,42878.0,42872.0,0.058309]
[1642256461154,0.3452206,42879.0,42872.0,0.058309]
[1642256462152,0.3452206,42879.0,42871.0,0.29940419]
[1642256462852,0.3452206,42879.0,42869.0,0.40181]
[1642256463253,0.3452206,42879.0,42869.0,0.2852]
[1642256463554,0.3452206,42879.0,42869.0,0.1852]
[1642256463755,0.375076,42878.0,42869.0,0.1852]
[1642256463953,0.3452206,42879.0,42869.0,0.1852]
[1642256464402,0.00085103,42879.0,42869.0,0.1852]
[1642256464603,0.00085103,42879.0,42870.0,0.69979]
[1642256464803,0.00085103,42879.0,42871.0,0.43192197]
[1642256465005,0.00085103,42879.0,42872.0,0.69976]
[1642256465203,0.00085103,42879.0,42873.0,0.175018]
[1642256465403,0.00085103,42879.0,42878.0,0.28086598]
[1642256469155,0.00085103,42879.0,42878.0,0.45312336]
[1642256469352,0.00085103,42879.0,42878.0,0.62811536]
[1642256469751,0.00085103,42879.0,42878.0,0.45585798]
[1642256469952,0.00085103,42879.0,42878.0,0.28086598]
[1642256470652,0.28893671,42879.0,42875.0,0.012806]
[1642256471559,0.28893671,42879.0,42874.0,0.69972]
[1642256472906,0.00085103,42879.0,42874.0,0.69972]
[1642256474210,0.32130871,42878.0,42874.0,0.69972]
[1642256474808,0.00085103,42879.0,42874.0,0.69972]
[1642256475552,0.00085103,42879.0,42874.0,0.82174735]
[1642256475752,0.00085103,42879.0,42876.0,0.31836888]
[1642256476957,0.00085103,42879.0,42877.0,0.37442511]
[1642256477159,0.00085103,42879.0,42878.0,0.35675242]
[1642256477356,0.00085103,42879.0,42878.0,0.35804627]
[1642256480503,0.00085103,42879.0,42878.0,0.31334627]
[1642256480703,0.00085103,42879.0,42878.0,0.169992]
[1642256480903,0.00085103,42879.0,42876.0,0.31836888]
[1642256481106,0.00085103,42879.0,42877.0,0.169998]
[1642256482505,0.00085103,42879.0,42877.0,0.50704112]
[1642256483156,0.00085103,42879.0,42877.0,0.56534237]
[1642256483455,0.00085103,42879.0,42877.0,0.22829925]
[1642256484460,0.00085103,42879.0,42877.0,0.53448844]
[1642256485158,0.00085103,42879.0,42877.0,0.65107544]
[1642256485358,0.00085103,42879.0,42878.0,0.708293]
[1642256485558,0.00085103,42879.0,42878.0,0.169994]
[1642256485758,0.00085103,42879.0,42875.0,0.116598]
[1642256485961,0.00085103,42879.0,42876.0,0.170003]
[1642256488704,0.00085103,42879.0,42876.0,0.22830478]
[1642256489206,0.00085103,42879.0,42876.0,0.28660078]
[1642256490408,0.00085103,42879.0,42877.0,0.0583]
[1642256490650,0.00085103,42879.0,42878.0,0.169995]
[1642256493051,1.70044787,42885.0,42878.0,0.169995]
[1642256493253,1.70044787,42885.0,42879.0,0.0583]
[1642256493450,0.8535,42891.0,42879.0,0.0583]
[1642256494051,0.8535,42891.0,42883.0,0.33990303]
[1642256494305,0.375062,42886.0,42883.0,0.33990303]
[1642256494504,0.26420464,42888.0,42883.0,0.33990303]
[1642256495505,0.26420464,42888.0,42883.0,0.29520303]
[1642256495706,0.26420464,42888.0,42883.0,0.35349803]
[1642256496305,2.76286543,42886.0,42883.0,0.35349803]
[1642256496508,0.375062,42885.0,42883.0,0.58349803]
[1642256497610,2.76286543,42886.0,42883.0,0.58349803]
[1642256497810,2.76286543,42886.0,42883.0,0.64179003]
[1642256498252,2.76286543,42886.0,42883.0,0.58339803]
[1642256499253,2.76286543,42886.0,42883.0,0.58349803]
[1642256500652,2.76286543,42886.0,42883.0,0.53859803]
[1642256501256,2.76286543,42886.0,42883.0,0.52520303]
[1642256503707,2.76286543,42886.0,42883.0,0.58349403]
[1642256504104,2.75286543,42886.0,42883.0,0.58349403]
[1642256504606,2.75286543,42886.0,42883.0,0.52520303]
[1642256505581,2.75286543,42886.0,42883.0,0.48060303]
[1642256506381,2.75286543,42886.0,42883.0,0.38760303]
[1642256506782,2.75286543,42886.0,42883.0,0.44589503]
[1642256507887,2.75286543,42886.0,42883.0,0.38760303]
[1642256508182,2.75286543,42886.0,42883.0,0.23]
[1642256510711,2.75286543,42886.0,42883.0,0.1849]
[1642256515757,2.75286543,42886.0,42883.0,0.14]
[1642256517207,0.375062,42885.0,42883.0,0.14]
[1642256517408,2.75286543,42886.0,42883.0,0.14]
[1642256520758,2.75286543,42886.0,42883.0,0.0953]
[1642256521158,2.75286543,42886.0,42883.0,0.153592]
[1642256522657,2.75286543,42886.0,42883.0,0.15359182]
[1642256523460,2.75286543,42886.0,42883.0,0.0953]
[1642256524507,2.99714497,42886.0,42883.0,0.0953]
[1642256525808,2.99714497,42886.0,42883.0,0.0506]
[1642256527308,2.75286543,42886.0,42883.0,0.0506]
[1642256527712,2.75286543,42886.0,42884.0,0.26310553]
[1642256530463,2.74930543,42886.0,42884.0,0.26310553]
[1642256530860,0.34347875,42885.0,42884.0,0.21840553]
[1642256531824,2.74930543,42886.0,42884.0,0.21840553]
[1642256532325,2.74930543,42886.0,42882.0,0.058295]
[1642256532928,3.01768444,42886.0,42882.0,0.058295]
[1642256533127,2.74930543,42886.0,42882.0,0.11658786]
[1642256533726,2.74930543,42886.0,42883.0,0.35464696]
[1642256535226,2.74930543,42886.0,42882.0,0.11658807]
[1642256535860,2.74930543,42886.0,42882.0,0.07198807]
[1642256536261,2.74930543,42886.0,42882.0,0.058295]
[1642256536659,2.74930543,42886.0,42882.0,0.208295]
[1642256536860,2.74930543,42886.0,42882.0,0.15]
[1642256537461,2.74930543,42886.0,42882.0,0.208297]
[1642256538561,2.74930543,42886.0,42882.0,0.80659306]
[1642256538964,2.74930543,42886.0,42882.0,0.86488606]
[1642256539409,2.74930543,42886.0,42882.0,0.26659]
[1642256539610,2.74930543,42886.0,42882.0,0.42638906]
[1642256540211,2.73018543,42886.0,42882.0,0.42638906]
[1642256540612,3.04862585,42886.0,42882.0,0.42638906]
[1642256540812,3.04862585,42886.0,42882.0,0.76199306]
[1642256541412,2.73018543,42886.0,42883.0,0.15641267]
[1642256541616,2.73018543,42886.0,42883.0,0.21470369]
[1642256541815,2.73018543,42886.0,42884.0,0.058289]
[1642256544656,2.73018543,42886.0,42885.0,0.15726088]
[1642256544856,0.0005336,42887.0,42885.0,0.16021331]
[1642256545056,0.0005336,42887.0,42886.0,0.169953]
[1642256545858,0.0005336,42887.0,42886.0,0.124953]
[1642256546057,0.0005336,42887.0,42886.0,0.28324035]
[1642256546459,0.0005336,42887.0,42886.0,0.124953]
[1642256546908,0.0005336,42887.0,42885.0,0.05828821]
[1642256548708,0.0005336,42887.0,42884.0,0.058699]
[1642256549108,0.0005336,42887.0,42884.0,0.000408]
[1642256550971,0.0005336,42887.0,42883.0,0.11134808]
[1642256551171,0.0005336,42887.0,42885.0,0.058288]
[1642256551672,0.0005336,42887.0,42885.0,0.1165749]
[1642256553374,0.0005336,42887.0,42886.0,0.74423]
[1642256556107,0.0005336,42887.0,42886.0,0.69923]
[1642256557214,0.0005336,42887.0,42886.0,0.824181]
[1642256557409,0.0005336,42887.0,42886.0,0.924181]
[1642256557807,0.0005336,42887.0,42886.0,2.824181]
[1642256558265,0.0005336,42887.0,42886.0,3.82149]
[1642256558464,0.0005336,42887.0,42886.0,3.82271977]
[1642256560768,0.0005336,42887.0,42886.0,3.72271977]
[1642256560967,2.96815402,42899.0,42895.0,0.44251322]
[1642256561171,2.1243192,42899.0,42897.0,0.058275]
[1642256561570,2.1243192,42899.0,42895.0,0.44251322]
[1642256562214,2.1243192,42899.0,42898.0,0.26200763]
[1642256564416,2.1243192,42899.0,42895.0,0.55906545]
[1642256564417,2.1243192,42899.0,42895.0,0.50079122]
[1642256564614,2.1243192,42899.0,42895.0,0.66195376]
[1642256565215,2.1243192,42899.0,42895.0,0.50079122]
[1642256565414,2.1243192,42899.0,42897.0,0.31110247]
[1642256565665,0.2934,42904.0,42897.0,0.31110247]
[1642256565867,0.00123579,42907.0,42900.0,0.058268]
[1642256566066,0.375054,42906.0,42900.0,0.013568]
[1642256566267,0.28118691,42904.0,42900.0,0.013568]
[1642256566466,0.00123579,42907.0,42900.0,0.013568]
[1642256566667,0.00123579,42907.0,42897.0,0.36937437]
[1642256566866,0.00123579,42907.0,42900.0,0.058272]
[1642256567466,0.00123579,42907.0,42900.0,0.38009558]
[1642256567672,0.00123579,42907.0,42902.0,0.058266]
[1642256568068,0.2888,42909.0,42904.0,0.058264]
[1642256568269,0.375054,42908.0,42904.0,0.058264]
[1642256568468,0.5674,42910.0,42904.0,0.058264]
[1642256568669,0.375054,42909.0,42904.0,0.11652645]
[1642256568870,0.375054,42909.0,42901.0,0.11652319]
[1642256569068,0.5674,42910.0,42901.0,0.11652319]
[1642256569713,0.5674,42910.0,42902.0,0.058265]
[1642256570114,0.5674,42910.0,42901.0,0.23304819]
[1642256570317,0.5674,42910.0,42904.0,0.28814746]
[1642256570913,0.5674,42910.0,42905.0,0.058264]
[1642256571115,0.28287638,42911.0,42905.0,0.013464]
[1642256571313,0.00024494,42911.0,42905.0,0.013464]
[1642256571913,0.00024494,42911.0,42906.0,0.05826]
[1642256572115,0.00024494,42911.0,42906.0,0.116521]
[1642256572514,0.00024494,42911.0,42904.0,0.116518]
[1642256572916,0.00024494,42911.0,42904.0,0.17478]
[1642256573358,1.79224378,42910.0,42904.0,0.17478]
[1642256573760,1.79224378,42910.0,42905.0,0.05826107]
[1642256573960,1.79224378,42910.0,42908.0,0.058256]
[1642256574263,0.00024494,42911.0,42909.0,0.00121865]
[1642256574459,0.00024494,42911.0,42910.0,2.307061]
[1642256574662,0.00024494,42911.0,42910.0,0.957061]
[1642256575058,0.00024494,42911.0,42910.0,1.28984569]
[1642256576060,0.00024494,42911.0,42910.0,1.24494569]
[1642256576917,0.00024494,42911.0,42910.0,1.16499469]
[1642256577116,0.00024494,42911.0,42910.0,1.31499469]
[1642256577515,0.00024494,42911.0,42910.0,0.98221]
[1642256580570,0.90024494,42911.0,42910.0,0.98221]
[1642256580773,1.27527794,42911.0,42910.0,0.98221]
[1642256581070,1.27527794,42911.0,42910.0,0.93761]
[1642256582870,0.37527794,42911.0,42910.0,0.93761]
[1642256586121,0.37527794,42911.0,42910.0,0.89271]
[1642256589264,0.53412846,42911.0,42910.0,0.89271]
[1642256590167,0.37527794,42911.0,42910.0,0.89271]
[1642256591165,0.37527794,42911.0,42910.0,0.84781]
[1642256592213,0.00024494,42911.0,42910.0,0.84781]
[1642256596064,0.00024494,42911.0,42910.0,0.80321]
[1642256596368,0.00024494,42911.0,42910.0,0.75861]
[1642256598366,0.2805702,42916.0,42910.0,0.75861]
[1642256598666,2.15030955,42917.0,42910.0,0.75861]
[1642256599313,2.15030955,42917.0,42912.0,0.058255]
[1642256599714,2.15030955,42917.0,42912.0,0.25451833]
[1642256600115,2.15030955,42917.0,42911.0,0.27051087]
[1642256601118,0.31377278,42914.0,42910.0,0.816765]
[1642256601318,2.15030955,42917.0,42910.0,0.816765]
[1642256601722,2.15030955,42917.0,42910.0,0.75861]
[1642256601917,2.14530955,42917.0,42910.0,0.75861]
[1642256602417,0.2827957,42916.0,42910.0,0.75861]
[1642256602817,0.2827957,42916.0,42912.0,0.058251]
[1642256603561,0.2827957,42916.0,42912.0,0.05825057]
[1642256604272,0.2827957,42916.0,42910.0,0.75861]
[1642256604862,0.2827957,42916.0,42910.0,0.816865]
[1642256605164,2.14530955,42917.0,42910.0,0.875119]
[1642256605567,2.14530955,42917.0,42910.0,0.816865]
[1642256605962,2.48526432,42917.0,42910.0,0.816865]
[1642256606163,2.48526432,42917.0,42910.0,0.772065]
[1642256606363,2.14530955,42917.0,42910.0,0.772065]
[1642256607235,2.14530955,42917.0,42911.0,0.058252]
[1642256607435,2.14530955,42917.0,42912.0,1.0558]
[1642256607636,2.39806532,42917.0,42912.0,1.0558]
[1642256608836,2.14530955,42917.0,42912.0,1.11405135]
[1642256609442,2.14530955,42917.0,42912.0,1.114055]
[1642256609639,2.14530955,42917.0,42912.0,1.0558]
[1642256610670,2.14530955,42917.0,42915.0,0.26374293]
[1642256610871,2.14530955,42917.0,42916.0,1.0557]
[1642256611270,2.14530955,42917.0,42916.0,1.011]
[1642256611672,2.14530955,42917.0,42916.0,1.069245]
[1642256612272,2.14530955,42917.0,42916.0,1.011]
[1642256612872,2.14030955,42917.0,42916.0,1.011]
[1642256613274,2.51534255,42917.0,42916.0,1.011]
[1642256616214,2.51534255,42917.0,42916.0,0.9662]
[1642256616612,2.61534255,42917.0,42916.0,0.9662]
[1642256617418,2.61534255,42917.0,42910.0,0.15]
[1642256617419,0.29762138,42916.0,42910.0,0.15]
[1642256617618,0.00121924,42911.0,42910.0,0.15]
[1642256617816,2.97625224,42911.0,42910.0,0.15]
[1642256618070,3.07625224,42911.0,42910.0,0.15]
[1642256618272,1.0,42910.0,42904.0,0.59825844]
[1642256618470,0.00121876,42906.0,42904.0,0.59825844]
[1642256619074,0.00121876,42906.0,42900.0,0.59825844]
[1642256620076,0.00121876,42906.0,42898.0,0.59825844]
[1642256620274,0.32716773,42903.0,42898.0,0.59825844]
[1642256620474,0.32716773,42903.0,42899.0,0.69929]
[1642256621177,0.32716773,42903.0,42899.0,0.65469]
[1642256622618,0.00121876,42906.0,42899.0,0.65469]
[1642256622818,0.00121876,42906.0,42899.0,0.64969]
[1642256623219,0.00121876,42906.0,42899.0,1.24794844]
[1642256623819,0.32058242,42905.0,42899.0,1.24794844]
[1642256624520,0.00121876,42906.0,42899.0,1.24794844]
[1642256626166,0.24894614,42905.0,42899.0,1.24794844]
[1642256626368,0.24894614,42905.0,42899.0,1.20294844]
[1642256627767,0.00121876,42906.0,42899.0,1.20294844]
[1642256628168,0.00121876,42906.0,42899.0,0.75469]
[1642256628767,0.32379518,42906.0,42899.0,0.75469]
[1642256629171,0.32379518,42906.0,42899.0,1.20294844]
[1642256629818,0.32379518,42906.0,42899.0,0.60469]
[1642256630621,0.32379518,42906.0,42899.0,0.76087601]
[1642256630924,0.32379518,42906.0,42899.0,0.60469]
[1642256631323,0.32379518,42906.0,42899.0,1.15834844]
[1642256631620,0.00121876,42906.0,42899.0,1.15834844]
[1642256632122,0.00121876,42906.0,42899.0,0.56009]
[1642256632524,0.34140876,42906.0,42899.0,0.56009]
[1642256633763,0.34140876,42906.0,42900.0,0.59825844]
[1642256634769,0.34140876,42906.0,42899.0,0.56009]
[1642256636835,0.34140876,42906.0,42899.0,0.51039]
[1642256637533,0.34140876,42906.0,42899.0,1.10864844]
[1642256638934,0.33640876,42906.0,42899.0,1.10864844]
[1642256640437,0.15634666,42905.0,42899.0,1.10864844]
[1642256640680,0.00120925,42902.0,42899.0,1.10864844]
[1642256641473,0.00120925,42902.0,42899.0,0.51039]
[1642256641872,0.33640876,42906.0,42899.0,0.46579]
[1642256642571,0.33640876,42906.0,42902.0,0.31319059]
[1642256643371,0.00126988,42908.0,42902.0,0.31319059]
[1642256643771,0.1764839,42913.0,42902.0,0.31319059]
[1642256643973,0.375033,42912.0,42902.0,0.31319059]
[1642256644172,0.533308,42912.0,42902.0,0.31319059]
[1642256644416,0.29569021,42908.0,42902.0,0.31319059]
[1642256645321,0.1,42912.0,42902.0,0.31319059]
[1642256645518,0.375033,42911.0,42902.0,0.63663957]
[1642256645719,0.0012579,42913.0,42902.0,0.63663957]
[1642256645918,0.1,42911.0,42902.0,0.63663957]
[1642256646120,0.0012579,42913.0,42902.0,0.63663957]
[1642256646319,0.29497541,42911.0,42904.0,0.30504886]
[1642256646520,0.0012579,42913.0,42912.0,0.28603719]
[1642256646720,0.3762909,42913.0,42912.0,0.28603719]
[1642256646918,0.3762909,42913.0,42912.0,0.24143719]
[1642256647720,0.375033,42913.0,42912.0,0.24143719]
[1642256648571,0.375033,42913.0,42903.0,0.59825844]